lending/lending_fUSD_20250808
["ID","MTS","AMOUNT","RATE_DAILY","PERIOD"]
[378046997,1754689840956,-471.92,0.00024889,2]
[378046998,1754689840965,-400.0,0.00024889,2]
[378046999,1754689840974,-400.0,0.00024889,2]
[378047000,1754689840984,-400.0,0.00024889,2]
[378047001,1754689840994,-480.64,0.00024889,2]
[378047002,1754689841006,-400.0,0.00024889,2]
[378047003,1754689841016,-400.0,0.00024889,2]
[378047004,1754689841027,-400.0,0.00024889,2]
[378047005,1754689841036,-400.0,0.00024889,2]
[378047006,1754689841045,-400.0,0.00024889,2]
[378047007,1754689841055,-400.0,0.00024889,2]
[378047008,1754689841064,-158.725,0.00024889,2]
[378047009,1754689841073,-400.0,0.00024889,2]
[378047010,1754689841083,-400.0,0.00024889,2]
[378047011,1754689841092,-534.57,0.00024889,2]
[378047012,1754689841101,-400.0,0.00024889,2]
[378047013,1754689841111,-400.0,0.00024889,2]
[378047014,1754689841122,-405.36,0.00024889,2]
[378047015,1754689841132,-400.0,0.00024889,2]
[378047016,1754689841141,-400.0,0.00024889,2]
[378047017,1754689841150,-415.74,0.00024889,2]
[378047018,1754689841159,-400.0,0.00024889,2]
[378047019,1754689841169,-400.0,0.00024889,2]
[378047020,1754689841178,-400.0,0.00024889,2]
[378047021,1754689841188,-400.0,0.00024889,2]
[378047022,1754689841199,-400.0,0.00024889,2]
[378047023,1754689841208,-400.0,0.00024889,2]
[378047024,1754689841217,-500.0,0.00024889,2]
[378047025,1754689841227,-500.0,0.00024889,2]
[378047026,1754689841236,-400.0,0.00024889,2]
[378047027,1754689841247,-286.68271169,0.00024889,2]
[378047028,1754689841256,-400.0,0.00024889,2]
[378047029,1754689841265,-400.0,0.00024889,2]
[378047030,1754689841274,-400.0,0.00024889,2]
[378047031,1754689841284,-400.0,0.00024889,2]
[378047032,1754689841293,-400.0,0.00024889,2]
[378047033,1754689841302,-186.91,0.00024889,2]
[378047034,1754689841311,-400.0,0.00024889,2]
[378047035,1754689841320,-545.7,0.00024889,2]
[378047036,1754689841330,-400.0,0.00024889,2]
[378047037,1754689841339,-400.0,0.00024889,2]
[378047038,1754689841348,-31975.1921526,0.0002489,3]
[378047039,1754689841358,-69905.11469893,0.0002489,2]
[378047040,1754689841367,-6335.80097593,0.0002489,2]
[378047041,1754689841376,-151.0,0.0002489,7]
[378047042,1754689841385,-151.0,0.0002489,7]
[378047043,1754689841395,-151.0,0.0002489,7]
[378047044,1754689841404,-299.0,0.0002489,7]
[378047045,1754689841413,-151.0,0.0002489,7]
[378047046,1754689841422,-151.0,0.0002489,7]
[378047047,1754689841432,-151.0,0.0002489,7]
[378047048,1754689841441,-151.0,0.0002489,7]
[378047049,1754689841451,-151.0,0.0002489,7]
[378047050,1754689841460,-151.0,0.0002489,7]
[378047051,1754689841469,-151.0,0.0002489,7]
[378047052,1754689841479,-151.0,0.0002489,7]
[378047053,1754689841487,-155.691091,0.0002489,7]
[378047054,1754689841497,-154.557096,0.0002489,7]
[378047055,1754689841506,-151.0,0.0002489,7]
[378047056,1754689841515,-151.0,0.0002489,7]
[378047057,1754689841524,-151.0,0.0002489,7]
[378047058,1754689841534,-218.405651,0.0002489,7]
[378047059,1754689841543,-195.891571,0.0002489,7]
[378047060,1754689841552,-151.0,0.0002489,7]
[378047061,1754689841562,-151.0,0.0002489,7]
[378047062,1754689841571,-151.0,0.0002489,7]
[378047063,1754689841581,-151.0,0.0002489,7]
[378047064,1754689841590,-151.0,0.0002489,7]
[378047065,1754689841599,-151.0,0.0002489,7]
[378047066,1754689841608,-151.0,0.0002489,7]
[378047067,1754689841619,-151.0,0.0002489,7]
[378047068,1754689841629,-151.0,0.0002489,7]
[378047069,1754689841640,-151.0,0.0002489,7]
[378047070,1754689841651,-187.628555,0.0002489,7]
[378047071,1754689841660,-151.0,0.0002489,7]
[378047072,1754689841670,-151.0,0.0002489,7]
[378047073,1754689841839,-151.0,0.0002489,7]
[378047074,1754689841851,-151.0,0.0002489,7]
[378047075,1754689841863,-151.0,0.0002489,7]
[378047076,1754689841872,-151.0,0.0002489,7]
[378047077,1754689841883,-151.0,0.0002489,7]
[378047078,1754689841893,-151.717385,0.0002489,7]
[378047079,1754689841904,-152.324093,0.0002489,7]
[378047080,1754689841912,-151.0,0.0002489,7]
[378047081,1754689841922,-151.0,0.0002489,7]
[378047082,1754689841931,-151.0,0.0002489,7]
[378047083,1754689841941,-151.0,0.0002489,7]
[378047084,1754689841951,-151.0,0.0002489,7]
[378047085,1754689841962,-151.786275,0.0002489,7]
[378047086,1754689841972,-151.0,0.0002489,7]
[378047087,1754689841983,-151.0,0.0002489,7]
[378047088,1754689841994,-152.523671,0.0002489,7]
[378047089,1754689842003,-151.0,0.0002489,7]
[378047090,1754689842013,-151.0,0.0002489,7]
[378047091,1754689842023,-151.0,0.0002489,7]
[378047092,1754689842034,-151.0,0.0002489,7]
[378047093,1754689842044,-151.0,0.0002489,7]
[378047094,1754689842053,-156.752019,0.0002489,7]
[378047095,1754689842063,-151.0,0.0002489,7]
[378047096,1754689842073,-151.0,0.0002489,7]
[378047097,1754689842083,-151.0,0.0002489,7]
[378047098,1754689842093,-161.243233,0.0002489,7]
[378047099,1754689842104,-151.0,0.0002489,7]
[378047100,1754689842114,-151.0,0.0002489,7]
[378047101,1754689842123,-151.0,0.0002489,7]
[378047102,1754689842134,-151.0,0.0002489,7]
[378047103,1754689842143,-151.0,0.0002489,7]
[378047104,1754689842155,-151.0,0.0002489,7]
[378047105,1754689842167,-151.0,0.0002489,7]
[378047106,1754689842178,-151.0,0.0002489,7]
[378047107,1754689842189,-151.0,0.0002489,7]
[378047108,1754689842201,-151.0,0.0002489,7]
[378047109,1754689842211,-151.0,0.0002489,7]
[378047110,1754689842220,-151.0,0.0002489,7]
[378047111,1754689842229,-151.0,0.0002489,7]
[378047112,1754689842239,-151.0,0.0002489,7]
[378047113,1754689842248,-151.0,0.0002489,7]
[378047114,1754689842258,-151.0,0.0002489,7]
[378047115,1754689842268,-151.0,0.0002489,7]
[378047116,1754689842278,-151.0,0.0002489,7]
[378047117,1754689842290,-151.0,0.0002489,7]
[378047118,1754689842299,-167.441485,0.0002489,7]
[378047119,1754689842309,-151.0,0.0002489,7]
[378047120,1754689842318,-226.685624,0.0002489,7]
[378047121,1754689842327,-151.0,0.0002489,7]
[378047122,1754689842336,-151.0,0.0002489,7]
[378047123,1754689842346,-151.0,0.0002489,7]
[378047124,1754689842356,-153.660334,0.0002489,7]
[378047125,1754689842366,-151.0,0.0002489,7]
[378047126,1754689842375,-151.0,0.0002489,7]
[378047127,1754689842385,-151.0,0.0002489,7]
[378047128,1754689842395,-151.0,0.0002489,7]
[378047129,1754689842404,-151.0,0.0002489,7]
[378047130,1754689842414,-151.0,0.0002489,7]
[378047131,1754689842423,-151.0,0.0002489,7]
[378047132,1754689842432,-151.0,0.0002489,7]
[378047133,1754689842442,-151.0,0.0002489,7]
[378047134,1754689842452,-151.0,0.0002489,7]
[378047135,1754689842462,-151.0,0.0002489,7]
[378047136,1754689842472,-151.0,0.0002489,7]
[378047137,1754689842483,-151.0,0.0002489,7]
[378047138,1754689842492,-151.0,0.0002489,7]
[378047140,1754689842502,-151.0,0.0002489,7]
[378047141,1754689842512,-213.468762,0.0002489,7]
[378047142,1754689842522,-151.0,0.0002489,7]
[378047143,1754689842531,-151.0,0.0002489,7]
[378047145,1754689842748,-151.0,0.0002489,7]
[378047146,1754689842758,-151.0,0.0002489,7]
[378047147,1754689842768,-151.0,0.0002489,7]
[378047148,1754689842778,-151.0,0.0002489,7]
[378047149,1754689842789,-151.0,0.0002489,7]
[378047150,1754689842799,-154.244221,0.0002489,7]
[378047151,1754689842808,-842.44706758,0.0002489,7]
[378047152,1754689842817,-842.44706758,0.0002489,3]
[378047153,1754689842827,-151.0,0.0002489,7]
[378047154,1754689842837,-151.0,0.0002489,7]
[378047155,1754689842846,-151.0,0.0002489,7]
[378047156,1754689842855,-151.0,0.0002489,7]
[378047157,1754689842864,-151.0,0.0002489,7]
[378047158,1754689842873,-151.0,0.0002489,7]
[378047159,1754689842882,-151.0,0.0002489,7]
[378047160,1754689842892,-151.0,0.0002489,7]
[378047161,1754689842903,-151.0,0.0002489,7]
[378047162,1754689842914,-151.0,0.0002489,7]
[378047163,1754689842923,-151.0,0.0002489,7]
[378047164,1754689842934,-151.0,0.0002489,7]
[378047165,1754689842943,-151.0,0.0002489,7]
[378047166,1754689842952,-151.0,0.0002489,7]
[378047167,1754689842962,-151.0,0.0002489,7]
[378047168,1754689842971,-151.0,0.0002489,7]
[378047169,1754689842980,-152.901266,0.0002489,7]
[378047170,1754689842989,-151.0,0.0002489,7]
[378047171,1754689842998,-151.0,0.0002489,7]
[378047172,1754689843008,-151.0,0.0002489,7]
[378047173,1754689843017,-151.0,0.0002489,7]
[378047174,1754689843026,-153.058116,0.0002489,7]
[378047175,1754689843035,-185659.01379875,0.0002489,3]
[378047177,1754689843058,-1888.0,0.00021624,3]
[378047179,1754689843067,-3078.10390706,0.0002489,3]
[378047180,1754689843078,-12279.1263671,0.0002489,3]
[378047190,1754689845708,-341.25426231,0.00023864,3]
[378047191,1754689845993,-3434.74573769,0.00023864,3]
[378047192,1754689846003,-1888.0,0.00024889,3]
[378047193,1754689846013,-5429.25426231,0.0002489,3]
[378047194,1754689846024,-1076.2800054,0.0002489,3]
[378047195,1754689846055,-4157.36383668,0.0002489,3]
[378047218,1754690380128,176.87,0.00013699,2]
[378047221,1754690678439,164.37,0.00017441,2]
[378047222,1754690934588,-151.0,0.00018545,2]
[378047223,1754690934612,-38.83,0.00018764,2]
[378047225,1754691023177,620.70282,0.00018501,30]
[378047226,1754691023452,620.70282,0.00018501,30]
[378047227,1754691023781,620.70282,0.00018501,30]
[378047228,1754691024173,620.70282,0.00018501,30]
[378047229,1754691024458,620.70283,0.00018501,30]
[378047238,1754691031895,-461.17,0.00018764,2]
[378047239,1754691031904,-500.0,0.00018882,2]
[378047240,1754691031914,-604.36,0.00019,2]
[378047241,1754691031924,-164.37,0.00019171,2]
[378047242,1754691031939,-500.0,0.00019194,2]
[378047243,1754691031948,-514.0,0.00019606,2]
[378047244,1754691031957,-176.87,0.00020187,2]
[378047245,1754691031966,-500.0,0.00020466,2]
[378047246,1754691031976,-500.0,0.00020641,2]
[378047247,1754691031985,-706.3614907,0.00020885,2]
[378047248,1754691031996,-400.0,0.00020885,2]
[378047249,1754691032014,-93.6385093,0.00020885,2]
[378047250,1754691032023,-1191.29989083,0.00020886,2]
[378047251,1754691032234,-3215.77802678,0.00020886,2]
[378047252,1754691032243,-164.37,0.00020902,2]
[378047253,1754691032253,-300.0,0.00021046,2]
[378047254,1754691032263,-300.0,0.00021046,2]
[378047255,1754691032272,-160.0,0.00021046,2]
[378047256,1754691032281,-160.81,0.00021048,2]
[378047257,1754691032291,-327.81,0.00021757,2]
[378047258,1754691032300,-2215.47,0.00021757,2]
[378047259,1754691032309,-302.05,0.00021757,2]
[378047260,1754691032318,-150.99,0.00021757,2]
[378047261,1754691032329,-9999.99,0.00021757,2]
[378047262,1754691032338,-600.0,0.00021822,2]
[378047263,1754691032348,-300.81,0.00021822,2]
[378047264,1754691032358,-164.37,0.00022632,2]
[378047265,1754691032368,-295.41,0.00022692,2]
[378047266,1754691032377,-1000.0,0.00022712,2]
[378047267,1754691032386,-250.0,0.00022787,2]
[378047268,1754691032397,-170.0,0.00022837,7]
[378047269,1754691032406,-420.0,0.00022892,2]
[378047270,1754691032415,-22016.96910984,0.00022899,2]
[378047294,1754691037830,-1888.0,0.00019694,3]
[378047295,1754691037840,-3776.0,0.00021934,3]
[378047296,1754691037849,-522.20173783,0.00022898,2]
[378047297,1754691037859,-1883.03089016,0.00022899,2]
[378047298,1754691037869,-19575.61341794,0.00022935,2]
[378047299,1754691037880,-1144.44820268,0.00022935,2]
[378047300,1754691037945,-1015.65765027,0.00022935,2]
[378047305,1754691040016,-1888.0,0.00020194,3]
[378047306,1754691040026,-3776.0,0.00022434,3]
[378047307,1754691040035,-8103.97243874,0.00022935,2]
[378047308,1754691040045,-1304.79427363,0.00022935,2]
[378047309,1754691040054,-3987.69333919,0.00022938,2]
[378047310,1754691040063,-427.63254393,0.0002294,2]
[378047311,1754691040073,-5227.22651597,0.00022942,2]
[378047312,1754691040082,-3987.69333919,0.00022943,2]
[378047313,1754691040093,-427.63254393,0.00022946,2]
[378047314,1754691040102,-1304.79427363,0.00022947,2]
[378047315,1754691040112,-5227.22651597,0.00022947,2]
[378047316,1754691040122,-5227.22651597,0.00022948,2]
[378047317,1754691040131,-427.63254393,0.00022949,2]
[378047318,1754691040141,-3987.69333919,0.00022951,2]
[378047319,1754691040150,-2079.09890156,0.00022954,2]
[378047320,1754691040160,-29839.69170963,0.00022955,2]
[378047321,1754691040171,-2079.09890156,0.0002296,2]
[378047322,1754691040180,-5227.22651597,0.00022964,2]
[378047323,1754691040190,-2079.09890156,0.00022965,2]
[378047324,1754691040200,-5227.22651597,0.00022966,2]
[378047325,1754691040211,-2079.09890156,0.00022967,2]
[378047326,1754691040221,-4963.86494702,0.00022968,2]
[378047327,1754691040238,-4764.3137434,0.00022968,2]
[378047328,1754691040249,-306.0195395,0.00022968,2]
[378047329,1754691040261,-10224.98108527,0.00022968,2]
[378047330,1754691040277,-3234.75152,0.00022968,2]
[378047391,1754691042843,-368.35140669,0.00020694,3]
[378047392,1754691042902,-1135.74813428,0.00020694,3]
[378047393,1754691043071,-383.90045903,0.00020694,3]
[378047394,1754691043080,-1888.0,0.00021194,3]
[378047395,1754691043090,-3776.0,0.00022934,3]
[378047396,1754691043099,-2600.80976108,0.00022968,2]
[378047397,1754691043111,-3744.95111336,0.00022968,2]
[378047398,1754691043121,-2079.09890156,0.00022969,2]
[378047399,1754691043130,-2947.61407872,0.00022976,2]
[378047400,1754691043147,-1457.40859331,0.00022976,2]
[378047401,1754691043158,-25434.6690376,0.00022976,2]
[378047402,1754691043168,-1304.79427363,0.0002298,2]
[378047403,1754691043177,-1304.79427363,0.00022981,2]
[378047404,1754691043187,-1304.79427363,0.00022987,2]
[378047405,1754691043196,-3987.69333919,0.00022988,2]
[378047406,1754691043205,-3987.69333919,0.00022988,2]
[378047407,1754691043214,-427.63254393,0.00022991,2]
[378047408,1754691043223,-29839.69170963,0.00022991,2]
[378047409,1754691043233,-427.63254393,0.00022993,2]
[378047410,1754691043242,-5149.13951908,0.00023194,2]
[378047411,1754691043251,-5000.0,0.00023203,2]
[378047412,1754691043260,-154.2,0.00023223,2]
[378047413,1754691043269,-154.2,0.00023261,2]
[378047414,1754691043278,-600.0,0.00023275,2]
[378047415,1754691043287,-160.0,0.00023275,2]
[378047416,1754691043296,-267.46074303,0.00023275,2]
[378047417,1754691043305,-417.95351277,0.00023275,2]
[378047418,1754691043314,-1357.4837235,0.00023275,2]
[378047419,1754691043323,-151.0,0.00023275,2]
[378047420,1754691043332,-300.0,0.00023275,2]
[378047421,1754691043342,-300.0,0.00023275,2]
[378047422,1754691043351,-300.0,0.00023275,2]
[378047423,1754691043360,-300.0,0.00023275,2]
[378047424,1754691043369,-300.0,0.00023275,2]
[378047425,1754691043378,-300.0,0.00023275,2]
[378047426,1754691043387,-300.0,0.00023275,2]
[378047427,1754691043396,-401.19111454,0.00023275,2]
[378047428,1754691043407,-300.0,0.00023275,2]
[378047429,1754691043416,-500.0,0.00023275,2]
[378047430,1754691043426,-500.0,0.00023275,2]
[378047431,1754691043435,-300.0,0.00023275,2]
[378047432,1754691043447,-500.0,0.00023275,2]
[378047433,1754691043461,-300.0,0.00023275,2]
[378047434,1754691043473,-500.0,0.00023275,2]
[378047435,1754691043482,-300.0,0.00023275,2]
[378047436,1754691043492,-500.0,0.00023275,2]
[378047437,1754691043501,-500.0,0.00023275,2]
[378047438,1754691043510,-360.49641913,0.00023275,2]
[378047439,1754691043519,-201.93286099,0.00023275,2]
[378047440,1754691043528,-154.2,0.000233,2]
[378047441,1754691043538,-154.2,0.00023339,2]
[378047442,1754691043547,-154.2,0.00023377,2]
[378047443,1754691043556,-154.2,0.00023416,2]
[378047444,1754691043565,-3776.0,0.00023434,3]
[378047445,1754691043574,-168.05,0.00023449,2]
[378047446,1754691043583,-154.2,0.00023455,2]
[378047447,1754691043592,-457.64618948,0.00023606,2]
[378047448,1754691043602,-188.79,0.00023757,2]
[378047449,1754691043611,-600.0,0.00023823,2]
[378047450,1754691043622,-151.0,0.00023823,2]
[378047451,1754691043632,-10930.86632692,0.0002387,2]
[378047452,1754691043641,-858.066,0.00024141,6]
[378047453,1754691043650,-537.43139918,0.00024143,2]
[378047454,1754691043659,-1790.18043325,0.00024301,2]
[378047455,1754691043668,-164.37,0.00024362,2]
[378047456,1754691043677,-600.0,0.00024371,2]
[378047457,1754691043686,-151.0,0.00024371,2]
[378047458,1754691043696,-150.0,0.00024615,2]
[378047459,1754691043705,-1864.95224255,0.0002462,2]
[378047460,1754691043715,-150.0,0.00024639,2]
[378047461,1754691043724,-150.0,0.00024639,2]
[378047462,1754691043733,-160.0,0.00024644,2]
[378047463,1754691043743,-277.35679052,0.00024644,2]
[378047464,1754691043752,-416.03518578,0.00024644,2]
[378047465,1754691043762,-150.0,0.00024651,2]
[378047466,1754691043771,-1000.0,0.00024658,2]
[378047467,1754691043780,-150.0,0.00024661,2]
[378047468,1754691043790,-236.39,0.00024674,2]
[378047469,1754691043800,-3874.65408741,0.0002469,2]
[378047470,1754691043809,-213.61,0.000247,2]
[378047471,1754691043819,-1100.0,0.000247,9]
[378047472,1754691043828,-150.0,0.00024702,2]
[378047473,1754691043838,-150.0,0.00024702,2]
[378047474,1754691043847,-150.0,0.00024719,2]
[378047475,1754691043856,-150.0,0.00024723,2]
[378047476,1754691043865,-150.0,0.00024729,2]
[378047477,1754691043875,-150.0,0.00024752,2]
[378047478,1754691043884,-150.0,0.00024754,2]
[378047479,1754691043893,-150.0,0.00024768,2]
[378047480,1754691043902,-150.0,0.00024768,2]
[378047481,1754691043911,-5033.52523266,0.0002478,2]
[378047482,1754691043920,-174.70537369,0.0002478,2]
[378047483,1754691043931,-150.0,0.00024781,2]
[378047484,1754691043941,-625.0,0.00024788,2]
[378047485,1754691043950,-150.0,0.00024789,2]
[378047486,1754691043959,-208.08518983,0.00024789,2]
[378047487,1754691043968,-625.0,0.0002479,2]
[378047488,1754691043978,-101143.7321,0.0002479,2]
[378047489,1754691043987,-150.0,0.00024799,2]
[378047490,1754691043996,-622.63316524,0.000248,2]
[378047491,1754691044005,-2300.0,0.000248,9]
[378047492,1754691044014,-4278.05282075,0.00024801,2]
[378047493,1754691044024,-150.0,0.00024802,2]
[378047494,1754691044036,-150.0,0.00024819,2]
[378047495,1754691044051,-150.0,0.0002483,2]
[378047496,1754691044061,-150.0,0.00024845,2]
[378047497,1754691044071,-150.0,0.00024848,2]
[378047498,1754691044081,-150.0,0.00024859,2]
[378047499,1754691044090,-150.0,0.00024868,2]
[378047500,1754691044100,-38024.5938103,0.0002487,3]
[378047501,1754691044109,-457.64618948,0.0002487,3]
[378047502,1754691044119,-211.62674257,0.0002487,3]
[378047503,1754691044128,-500.0,0.00024873,2]
[378047504,1754691044137,-500.0,0.00024873,2]
[378047505,1754691044147,-500.0,0.00024873,2]
[378047506,1754691044158,-500.0,0.00024873,2]
[378047507,1754691044167,-150.0,0.00024873,2]
[378047508,1754691044177,-500.0,0.00024873,2]
[378047509,1754691044187,-500.77617824,0.00024873,2]
[378047510,1754691044197,-500.0,0.00024873,2]
[378047511,1754691044206,-500.0,0.00024873,2]
[378047512,1754691044215,-500.0,0.00024873,2]
[378047513,1754691044224,-400.0,0.00024879,2]
[378047514,1754691044234,-400.0,0.00024879,2]
[378047515,1754691044243,-500.43,0.00024879,2]
[378047516,1754691044254,-400.0,0.00024879,2]
[378047517,1754691044266,-3309.14,0.00024879,2]
[378047518,1754691044275,-391.04,0.00024879,2]
[378047519,1754691044284,-400.0,0.00024879,2]
[378047520,1754691044294,-400.0,0.00024879,2]
[378047521,1754691044304,-211.62674257,0.00024879,3]
[378047522,1754691044313,-15209.8375241,0.00024879,3]
[378047523,1754691044322,-842.44706758,0.0002488,3]
[378047524,1754691044331,-30419.6750482,0.0002488,3]
[378047525,1754691044341,-60839.3500964,0.0002488,3]
[378047526,1754691044350,-400.0,0.0002488,2]
[378047527,1754691044360,-400.0,0.0002488,2]
[378047528,1754691044370,-400.0,0.0002488,2]
[378047529,1754691044379,-804.13,0.0002488,2]
[378047530,1754691044390,-400.0,0.0002488,2]
[378047531,1754691044402,-420.6,0.0002488,2]
[378047532,1754691044411,-1648.11,0.0002488,2]
[378047533,1754691044420,-400.0,0.0002488,2]
[378047534,1754691044430,-400.0,0.0002488,2]
[378047535,1754691044440,-309.42,0.0002488,2]
[378047536,1754691044450,-293.11,0.0002488,2]
[378047537,1754691044459,-400.0,0.0002488,2]
[378047538,1754691044468,-400.0,0.0002488,2]
[378047539,1754691044477,-400.0,0.0002488,2]
[378047540,1754691044487,-151.0,0.0002488,7]
[378047541,1754691044496,-158.6,0.0002488,2]
[378047542,1754691044506,-546.04,0.0002488,2]
[378047543,1754691044517,-400.0,0.0002488,2]
[378047544,1754691044527,-400.0,0.0002488,2]
[378047545,1754691044536,-842.44706758,0.0002488,3]
[378047546,1754691044545,-159703.294003,0.0002488,3]
[378047547,1754691044554,-216.16,0.0002488,2]
[378047548,1754691044563,-216.16,0.0002488,2]
[378047549,1754691044572,-198.16694138,0.0002488,2]
[378047550,1754691044582,-126580.58811074,0.00024882,2]
[378047551,1754691044592,-5350.98905894,0.00024882,2]
[378047552,1754691044601,-6207.0627707,0.00024882,2]
[378047553,1754691044610,-283010.1344999,0.00024882,2]
[378047554,1754691044621,-7604.91876205,0.00024889,3]
[378047555,1754691044630,-216.16,0.00024889,2]
[378047556,1754691044641,-300.0,0.00024889,2]
[378047557,1754691044650,-400.0,0.00024889,2]
[378047558,1754691044659,-400.0,0.00024889,2]
[378047559,1754691044670,-400.0,0.00024889,2]
[378047560,1754691044679,-400.0,0.00024889,2]
[378047561,1754691044690,-400.0,0.00024889,2]
[378047562,1754691044701,-400.0,0.00024889,2]
[378047563,1754691044710,-400.0,0.00024889,2]
[378047564,1754691044720,-400.0,0.00024889,2]
[378047565,1754691044730,-400.0,0.00024889,2]
[378047566,1754691044740,-400.0,0.00024889,2]
[378047567,1754691044750,-400.0,0.00024889,2]
[378047568,1754691044761,-400.0,0.00024889,2]
[378047569,1754691044772,-400.0,0.00024889,2]
[378047570,1754691044781,-400.0,0.00024889,2]
[378047571,1754691044791,-400.0,0.00024889,2]
[378047572,1754691044801,-400.0,0.00024889,2]
[378047573,1754691044810,-400.0,0.00024889,2]
[378047575,1754691044819,-400.0,0.00024889,2]
[378047577,1754691044829,-400.0,0.00024889,2]
[378047579,1754691044838,-208.27864466,0.00024889,2]
[378047581,1754691044847,-400.0,0.00024889,2]
[378047583,1754691044857,-400.0,0.00024889,2]
[378047584,1754691044867,-400.0,0.00024889,2]
[378047585,1754691044876,-213.5059988,0.00024889,2]
[378047586,1754691044886,-400.0,0.00024889,2]
[378047587,1754691044896,-400.0,0.00024889,2]
[378047588,1754691044905,-400.0,0.00024889,2]
[378047589,1754691044915,-339.37,0.00024889,2]
[378047590,1754691044925,-430.28,0.00024889,2]
[378047591,1754691044939,-701.97,0.00024889,2]
[378047592,1754691044948,-157.92297919,0.00024889,2]
[378047593,1754691044957,-810.05,0.00024889,2]
[378047594,1754691044966,-187.67180083,0.00024889,2]
[378047595,1754691044977,-804.13,0.00024889,2]
[378047596,1754691044987,-804.13,0.00024889,2]
[378047597,1754691044996,-479.69,0.00024889,2]
[378047598,1754691045006,-400.0,0.00024889,2]
[378047599,1754691045016,-400.0,0.00024889,2]
[378047600,1754691045028,-400.0,0.00024889,2]
[378047601,1754691045037,-400.0,0.00024889,2]
[378047602,1754691045047,-151.0,0.0002489,7]
[378047603,1754691045056,-151.0,0.0002489,7]
[378047604,1754691045066,-151.0,0.0002489,7]
[378047605,1754691045075,-151.0,0.0002489,7]
[378047606,1754691045084,-151.0,0.0002489,7]
[378047608,1754691045094,-151.0,0.0002489,7]
[378047609,1754691045104,-151.0,0.0002489,7]
[378047611,1754691045114,-160.0,0.0002489,3]
[378047612,1754691045123,-151.0,0.0002489,7]
[378047613,1754691045132,-151.0,0.0002489,7]
[378047614,1754691045142,-178.554854,0.0002489,7]
[378047615,1754691045151,-151.0,0.0002489,7]
[378047616,1754691045160,-151.0,0.0002489,7]
[378047617,1754691045170,-151.0,0.0002489,7]
[378047618,1754691045179,-151.0,0.0002489,7]
[378047619,1754691045188,-151.0,0.0002489,7]
[378047620,1754691045198,-151.0,0.0002489,7]
[378047621,1754691045207,-151.0,0.0002489,7]
[378047622,1754691045216,-200.0,0.0002489,2]
[378047623,1754691045226,-151.0,0.0002489,7]
[378047624,1754691045236,-151.0,0.0002489,7]
[378047625,1754691045246,-151.0,0.0002489,7]
[378047626,1754691045255,-159.069411,0.0002489,7]
[378047627,1754691045266,-151.0,0.0002489,7]
[378047628,1754691045275,-159.069411,0.0002489,7]
[378047629,1754691045285,-151.0,0.0002489,7]
[378047630,1754691045294,-151.0,0.0002489,7]
[378047631,1754691045304,-162.138849,0.0002489,7]
[378047632,1754691045313,-154.476163,0.0002489,7]
[378047633,1754691045322,-155.577723,0.0002489,7]
[378047634,1754691045332,-151.0,0.0002489,7]
[378047635,1754691045341,-151.0,0.0002489,7]
[378047636,1754691045351,-151.0,0.0002489,7]